fUST/lending_fUST_20240509
["ID","MTS","AMOUNT","RATE_DAILY","PERIOD"]
[326697710,1715257867672,-7344.12,0.00047123,52]
[326697711,1715257867681,-579.06,0.00047123,52]
[326697712,1715257867692,-1699.39,0.00047123,52]
[326697713,1715257867701,-1151.12,0.00047123,52]
[326697714,1715257867711,-528.02,0.00047123,52]
[326697715,1715257867720,-893.08,0.00047123,52]
[326697716,1715257867729,-987.24,0.00047123,52]
[326697717,1715257867739,-509.90079574,0.00047123,52]
[326697718,1715257867749,-2122.67,0.00047123,52]
[326697719,1715257867759,-1395.57,0.00047123,52]
[326697720,1715257867769,-1081.08,0.00047123,52]
[326697721,1715257867778,-2710.95,0.00047123,52]
[326697722,1715257867787,-546.05804929,0.000473,120]
[326697723,1715257867796,-622.60112176,0.00047397,53]
[326697724,1715257867807,-511.66177555,0.00047397,53]
[326697725,1715257867816,-711.15238847,0.00047397,53]
[326697726,1715257867828,-883.4036311,0.00047397,53]
[326697727,1715257867838,-420.38917572,0.00047397,53]
[326697728,1715257867848,-916.61840822,0.00047397,53]
[326697729,1715257867858,-1297.23589997,0.00047397,53]
[326697730,1715257867867,-16666.82,0.00047397,53]
[326697731,1715257867880,-707.65792755,0.00047397,53]
[326697732,1715257867890,-651.78929715,0.00047397,53]
[326697733,1715257867900,-2636.97523515,0.00047397,53]
[326697734,1715257867909,-3370.59724897,0.00047397,21]
[326697735,1715257867919,-13710.57011976,0.00047397,53]
[326697736,1715257867929,-1098.76998352,0.00047397,53]
[326697737,1715257867938,-1361.60839464,0.00047397,53]
[326697738,1715257867948,-7344.13,0.00047397,53]
[326697739,1715257867958,-579.20675426,0.00047397,53]
[326697740,1715257867968,-1699.42693651,0.00047397,53]
[326697741,1715257867978,-1151.22644403,0.00047397,53]
[326697742,1715257867988,-528.07012332,0.00047397,53]
[326697743,1715257867997,-893.31978143,0.00047397,53]
[326697744,1715257868007,-987.27974158,0.00047397,53]
[326697745,1715257868017,-2122.82223445,0.00047397,53]
[326697746,1715257868027,-1395.6009264,0.00047397,53]
[326697747,1715257868037,-1081.30361927,0.00047397,53]
[326697748,1715257868046,-2710.97895084,0.00047397,53]
[326697749,1715257868055,-2933.990168,0.00047489,120]
[326697750,1715257868066,-151.0,0.00047534,120]
[326697751,1715257868076,-20000.0,0.00047666,120]
[326697752,1715257868086,-390.719587,0.00047758,2]
[326697753,1715257868095,-20000.0,0.00047777,120]
[326697754,1715257868105,-4000.0,0.00048,2]
[326697755,1715257868114,-506.0,0.00048,120]
[326697756,1715257868124,-6168.637999,0.00048,30]
[326697757,1715257868134,-151.0,0.00048164,120]
[326697758,1715257868143,-154.65974855,0.0004834,10]
[326697759,1715257868153,-180415.1898,0.000484,30]
[326697760,1715257868163,-557.0,0.00048588,30]
[326697761,1715257868173,-574.0,0.0004868,120]
[326697762,1715257868182,-151.0,0.00048795,120]
[326697763,1715257868192,-10000.0,0.00048888,120]
[326697764,1715257868203,-166.666666,0.00048986,2]
[326697765,1715257868212,-146951.42344178,0.00049,10]
[326697766,1715257868222,-7026.04440653,0.00049,120]
[326697767,1715257868232,-100221.23132,0.00049163,120]
[326697768,1715257868241,-151.0,0.00049425,120]
[326697769,1715257868251,-166.394239,0.0004962,2]
[326697770,1715257868262,-20000.0,0.00049666,120]
[326697771,1715257868272,-289.23252311,0.0004988,30]
[326697772,1715257868283,-2500.0,0.0004989,30]
[326697773,1715257868293,-10000.0,0.000499,120]
[326697774,1715257868302,-500.0,0.0005,120]
[326697775,1715257868311,-2000.0,0.0005,30]
[326697776,1715257868324,-2000.0,0.0005,15]
[326697777,1715257868333,-154.65974855,0.0005,30]
[326697778,1715257868342,-8607.48965419,0.0005,120]
[326697779,1715257868351,-1000.0,0.0005,2]
[326697780,1715257868362,-254.48361561,0.0005,120]
[326697781,1715257868372,-500.0,0.0005,7]
[326697782,1715257868381,-8381.88423214,0.0005,120]
[326697783,1715257868390,-2998.82741362,0.0005,120]
[326697784,1715257868400,-249.27429254,0.0005,30]
[326697785,1715257868410,-151.0,0.0005,120]
[326697786,1715257868419,-500.1764636,0.0005,120]
[326697787,1715257868428,-569.62485281,0.0005,7]
[326697788,1715257868437,-1630.0,0.0005,2]
[326697789,1715257868446,-189.65191827,0.0005,120]
[326697790,1715257868456,-962.90174446,0.0005,60]
[326697791,1715257868465,-151.0,0.00050055,120]
[326697792,1715257868474,-10000.0,0.00050666,120]
[326697793,1715257868483,-151.0,0.00050685,120]
[326697794,1715257868493,-44306.47544318,0.00050999,2]
[326697795,1715257868503,-3000.0,0.00051,85]
[326697796,1715257868512,-3000.0,0.0005101,85]
[326697797,1715257868522,-557.0,0.00051017,30]
[326697798,1715257868532,-3000.0,0.0005102,85]
[326697799,1715257868543,-3000.0,0.0005103,85]
[326697800,1715257868553,-3000.0,0.0005104,85]
[326697801,1715257868563,-3000.0,0.0005105,85]
[326697802,1715257868574,-3000.0,0.0005106,85]
[326697803,1715257868585,-5607.200482,0.0005107,85]
[326697804,1715257868594,-151.0,0.00051315,120]
[326697805,1715257868603,-13417.22621543,0.00051499,120]
[326697806,1715257868613,-18679.94939406,0.00051499,120]
[326697807,1715257868623,-2874.03465113,0.00051647,120]
[326697808,1715257868633,-20000.0,0.00051666,120]
[326697809,1715257868642,-2331.78013527,0.000518,120]
[326697810,1715257868652,-918.57,0.000518,120]
[326697811,1715257868663,-151.0,0.00051945,120]
[326697812,1715257868673,-600.0,0.00052,120]
[326697813,1715257868683,-500.0,0.00052,120]
[326697814,1715257868692,-50106.03863449,0.00052,30]
[326697815,1715257868701,-1000.0,0.00052054,120]
[326697816,1715257868711,-1000.0,0.00052054,120]
[326697817,1715257868721,-1000.0,0.00052054,120]
[326697818,1715257868731,-1000.0,0.00052054,120]
[326697819,1715257868740,-1000.0,0.00052054,120]
[326697820,1715257868750,-1000.0,0.00052054,120]
[326697821,1715257868759,-1049.11433258,0.00052054,120]
[326697822,1715257868768,-420.03494289,0.0005248,120]
[326697823,1715257868778,-300.18257975,0.0005248,120]
[326697824,1715257868787,-274.33350433,0.0005248,120]
[326697825,1715257868796,-289.95867388,0.0005248,120]
[326697826,1715257868805,-566.74673704,0.0005248,120]
[326697827,1715257868815,-151.0,0.00052575,120]
[326697828,1715257868827,-543.68,0.000526,60]
[326697829,1715257868837,-20000.0,0.00052666,120]
[326697830,1715257868846,-300.0,0.00053,120]
[326697831,1715257868856,-151.0,0.00053205,120]
[326697832,1715257868865,-2933.990168,0.00053425,120]
[326697833,1715257868874,-557.0,0.00053568,30]
[326697834,1715257868885,-20000.0,0.00053666,120]
[326697835,1715257868895,-20000.0,0.00053666,120]
[326697836,1715257868972,-151.0,0.00053836,120]
[326697837,1715257868983,-600.0,0.00054,120]
[326697838,1715257868993,-196.48691367,0.00054,120]
[326697839,1715257869002,-1000.0,0.00054,54]
[326697840,1715257869013,-390.719587,0.00054131,2]
[326697841,1715257869022,-151.0,0.00054466,120]
[326697842,1715257869032,-10244.0,0.00054666,120]
[326697843,1715257869042,-500.0,0.00054794,30]
[326697844,1715257869052,-500.0,0.00054794,31]
[326697845,1715257869061,-500.0,0.00054794,32]
[326697846,1715257869072,-500.0,0.00054794,33]
[326697847,1715257869081,-500.0,0.00054794,34]
[326697848,1715257869090,-500.0,0.00054794,35]
[326697849,1715257869100,-500.0,0.00054794,36]
[326697850,1715257869109,-500.0,0.00054794,37]
[326697851,1715257869120,-500.0,0.00054794,38]
[326697852,1715257869130,-500.0,0.00054794,39]
[326697853,1715257869140,-500.0,0.00054794,40]
[326697854,1715257869149,-505.93172846,0.00054794,41]
[326697855,1715257869159,-500.0,0.00054794,120]
[326697856,1715257869168,-500.0,0.00054794,120]
[326697857,1715257869178,-500.0,0.00054794,120]
[326697858,1715257869187,-500.0,0.00054794,120]
[326697859,1715257869197,-500.0,0.00054794,120]
[326697860,1715257869206,-500.0,0.00054794,120]
[326697861,1715257869216,-500.0,0.00054794,120]
[326697862,1715257869225,-500.0,0.00054794,120]
[326697863,1715257869234,-500.0,0.00054794,120]
[326697864,1715257869244,-500.0,0.00054794,120]
[326697865,1715257869253,-500.0,0.00054794,120]
[326697866,1715257869263,-500.0,0.00054794,120]
[326697867,1715257869275,-500.0,0.00054794,120]
[326697868,1715257869287,-500.0,0.00054794,120]
[326697869,1715257869297,-500.0,0.00054794,120]
[326697870,1715257869307,-500.0,0.00054794,120]
[326697871,1715257869317,-500.0,0.00054794,120]
[326697872,1715257869330,-500.0,0.00054794,120]
[326697873,1715257869339,-299.68988504,0.00054794,120]
[326697874,1715257869349,-500.0,0.00054794,30]
[326697875,1715257869361,-500.0,0.00054794,31]
[326697876,1715257869373,-531.808605,0.00054794,32]
[326697877,1715257869383,-153.558313,0.00054795,120]
[326697878,1715257869393,-153.558313,0.00054795,120]
[326697879,1715257869402,-153.558313,0.00054795,120]
[326697880,1715257869412,-153.558313,0.00054795,120]
[326697881,1715257869422,-153.558313,0.00054795,120]
[326697882,1715257869432,-153.558313,0.00054795,120]
[326697883,1715257869441,-153.558313,0.00054795,120]
[326697884,1715257869451,-153.558313,0.00054795,120]
[326697885,1715257869461,-153.558313,0.00054795,120]
[326697886,1715257869471,-154.05,0.00054795,120]
[326697887,1715257869480,-307.19162599,0.00054795,120]
[326697888,1715257869490,-307.19162599,0.00054795,120]
[326697889,1715257869499,-307.19162599,0.00054795,120]
[326697890,1715257869509,-307.19162599,0.00054795,120]
[326697891,1715257869518,-307.19162599,0.00054795,120]
[326697892,1715257869528,-307.19162599,0.00054795,120]
[326697893,1715257869537,-307.19162599,0.00054795,120]
[326697894,1715257869547,-307.19162599,0.00054795,120]
[326697895,1715257869557,-307.19162599,0.00054795,120]
[326697896,1715257869566,-307.19162599,0.00054795,120]
[326697897,1715257869578,-307.19162599,0.00054795,120]
[326697898,1715257869587,-307.19162599,0.00054795,120]
[326697899,1715257869597,-307.19162599,0.00054795,120]
[326697900,1715257869607,-307.19162599,0.00054795,120]
[326697901,1715257869616,-307.19162599,0.00054795,120]
[326697902,1715257869625,-307.19162599,0.00054795,120]
[326697903,1715257869635,-307.19162599,0.00054795,120]
[326697904,1715257869644,-307.19162599,0.00054795,120]
[326697905,1715257869654,-307.19162599,0.00054795,120]
[326697906,1715257869672,-307.69,0.00054795,120]
[326697907,1715257869691,-470.18322611,0.00054795,120]
[326697908,1715257869704,-470.18322611,0.00054795,120]
[326697909,1715257869720,-470.18322611,0.00054795,120]
[326697910,1715257869737,-470.18322611,0.00054795,120]
[326697911,1715257869754,-470.18322611,0.00054795,120]
[326697912,1715257869774,-470.18322611,0.00054795,120]
[326697913,1715257869789,-470.18322611,0.00054795,120]
[326697914,1715257869804,-470.18322611,0.00054795,120]
[326697915,1715257869823,-470.18322611,0.00054795,120]
[326697916,1715257869837,-470.18322611,0.00054795,120]
[326697917,1715257869852,-470.18322611,0.00054795,120]
[326697918,1715257869867,-470.18322611,0.00054795,120]
[326697919,1715257869884,-470.18322611,0.00054795,120]
[326697920,1715257869902,-470.18322611,0.00054795,120]
[326697921,1715257869918,-470.18322611,0.00054795,120]
[326697922,1715257869929,-470.18322611,0.00054795,120]
[326697923,1715257869941,-470.18322611,0.00054795,120]
[326697924,1715257869957,-470.18322611,0.00054795,120]
[326697925,1715257869971,-470.18322611,0.00054795,120]
[326697926,1715257869985,-470.68,0.00054795,120]
[326697927,1715257869998,-1880.80790445,0.00054795,120]
[326697928,1715257870012,-1880.80790445,0.00054795,120]
[326697929,1715257870026,-1880.80790445,0.00054795,120]
[326697930,1715257870040,-1880.80790445,0.00054795,120]
[326697931,1715257870056,-1880.80790445,0.00054795,120]
[326697932,1715257870073,-1880.80790445,0.00054795,120]
[326697933,1715257870087,-1880.80790445,0.00054795,120]
[326697934,1715257870102,-1880.80790445,0.00054795,120]
[326697935,1715257870115,-1880.80790445,0.00054795,120]
[326697936,1715257870129,-1880.80790445,0.00054795,120]
[326697937,1715257870143,-1880.80790445,0.00054795,120]
[326697938,1715257870156,-1880.80790445,0.00054795,120]
[326697939,1715257870169,-1880.80790445,0.00054795,120]
[326697940,1715257870183,-1880.80790445,0.00054795,120]
[326697941,1715257870198,-1880.80790445,0.00054795,120]
[326697942,1715257870212,-1880.80790445,0.00054795,120]
[326697943,1715257870225,-1880.80790445,0.00054795,120]
[326697944,1715257870240,-1880.80790445,0.00054795,120]
[326697945,1715257870254,-1880.80790445,0.00054795,120]
[326697946,1715257870270,-1881.3,0.00054795,120]
[326697947,1715257870285,-727.61098969,0.00054795,120]
[326697948,1715257870302,-727.61098969,0.00054795,120]
[326697949,1715257870316,-727.61098969,0.00054795,120]
[326697950,1715257870336,-727.61098969,0.00054795,120]
[326697951,1715257870350,-727.61098969,0.00054795,120]
[326697952,1715257870364,-727.61098969,0.00054795,120]
[326697953,1715257870377,-727.61098969,0.00054795,120]
[326697954,1715257870391,-727.61098969,0.00054795,120]
[326697955,1715257870404,-727.61098969,0.00054795,120]
[326697956,1715257870417,-727.61098969,0.00054795,120]
[326697957,1715257870430,-727.61098969,0.00054795,120]
[326697958,1715257870443,-727.61098969,0.00054795,120]
[326697959,1715257870457,-727.61098969,0.00054795,120]
[326697960,1715257870471,-727.61098969,0.00054795,120]
[326697961,1715257870485,-727.61098969,0.00054795,120]
[326697962,1715257870498,-727.61098969,0.00054795,120]
[326697963,1715257870513,-727.61098969,0.00054795,120]
[326697964,1715257870526,-727.61098969,0.00054795,120]
[326697965,1715257870542,-727.61098969,0.00054795,120]
[326697966,1715257870556,-728.11,0.00054795,120]
[326697967,1715257870576,-2910.51895875,0.00054795,120]
[326697968,1715257870591,-2910.51895875,0.00054795,120]
[326697969,1715257870608,-2910.51895875,0.00054795,120]
[326697970,1715257870623,-2910.51895875,0.00054795,120]
[326697971,1715257870638,-2910.51895875,0.00054795,120]
[326697972,1715257870653,-2910.51895875,0.00054795,120]
[326697973,1715257870778,-2910.51895875,0.00054795,120]
[326697974,1715257870794,-2910.51895875,0.00054795,120]
[326697975,1715257870805,-2910.51895875,0.00054795,120]
[326697976,1715257870816,-2910.51895875,0.00054795,120]
[326697977,1715257870829,-2910.51895875,0.00054795,120]
[326697978,1715257870839,-2910.51895875,0.00054795,120]
[326697979,1715257870849,-2910.51895875,0.00054795,120]
[326697980,1715257870859,-2910.51895875,0.00054795,120]
[326697981,1715257870870,-2910.51895875,0.00054795,120]
[326697982,1715257870882,-2910.51895875,0.00054795,120]
[326697983,1715257870892,-2910.51895875,0.00054795,120]
[326697984,1715257870901,-2910.51895875,0.00054795,120]
[326697985,1715257870912,-2910.51895875,0.00054795,120]
[326697986,1715257870922,-2911.01,0.00054795,120]
[326697987,1715257870932,-2998.82741362,0.00055,120]
[326697988,1715257870942,-151.0,0.00055096,120]
[326697989,1715257870951,-20000.0,0.00055666,120]
[326697990,1715257870960,-151.0,0.00055726,120]
[326697991,1715257870970,-557.0,0.00056246,120]
[326697992,1715257870979,-162.877953,0.00056256,2]
[326697993,1715257870989,-175.305256,0.00056256,2]
[326697994,1715257870999,-151.0,0.00056356,120]
[326697995,1715257871008,-221.0,0.000566,120]
[326697996,1715257871018,-2874.03465113,0.00056647,120]
[326697997,1715257871027,-20000.0,0.00056666,120]
[326697998,1715257871037,-151.0,0.00056986,120]
[326697999,1715257871047,-1765.77033935,0.00057,120]
[326698000,1715257871057,-481.41,0.00057,30]
[326698001,1715257871068,-180415.1898,0.000574,30]
[326698002,1715257871081,-2500.0,0.0005749,30]
[326698003,1715257871091,-151.0,0.00057616,120]
[326698004,1715257871100,-20000.0,0.00057666,120]
[326698005,1715257871109,-151.0,0.00058247,120]
[326698006,1715257871119,-20000.0,0.00058666,120]
[326698007,1715257871129,-1010.89929196,0.000587,60]
[326698008,1715257871138,-4972.0,0.000588,120]
[326698009,1715257871147,-151.0,0.00058877,120]
[326698010,1715257871156,-13417.22621543,0.00059006,120]
[326698011,1715257871166,-18679.94939406,0.00059006,120]
[326698012,1715257871175,-557.0,0.00059059,120]
[326698013,1715257871184,-151.0,0.00059507,120]
[326698014,1715257871194,-20000.0,0.00059666,120]
[326698015,1715257871204,-10063.29950923,0.000599,90]
[326698016,1715257871214,-1000.0,0.0006,120]
[326698017,1715257871223,-1006.94270825,0.0006,120]
[326698018,1715257871232,-68739.14287345,0.0006,120]
[326698019,1715257871241,-671.39090385,0.0006,12]
[326698020,1715257871250,-9613.85683441,0.0006,30]
[326698021,1715257871260,-176564.48552681,0.0006,120]
[326698022,1715257871269,-160.0,0.0006,60]
[326698023,1715257871279,-2998.82741362,0.0006,120]
[326698024,1715257871289,-160.0,0.0006,20]
[326698025,1715257871301,-19220.05403863,0.0006,30]
[326698026,1715257871310,-151.0,0.00060137,120]
[326698027,1715257871320,-390.719587,0.00060505,2]
[326698028,1715257871332,-151.0,0.00060767,120]
[326698029,1715257871341,-10000.0,0.00060888,120]
[326698030,1715257871350,-150.0,0.00061,120]
[326698031,1715257871359,-151.0,0.00061397,120]
[326698032,1715257871369,-345.85807746,0.000616,120]
[326698033,1715257871380,-2874.03465113,0.00061647,120]
[326698034,1715257871390,-20000.0,0.00061666,120]
[326698035,1715257871400,-668.0,0.00062,120]
[326698036,1715257871410,-557.0,0.00062012,120]
[326698037,1715257871420,-151.0,0.00062027,120]
[326698038,1715257871429,-151.0,0.00062658,120]
[326698039,1715257871438,-10000.0,0.00062889,120]
[326698040,1715257871447,-151.0,0.00063288,120]
[326698041,1715257871457,-202.692373,0.000633,120]
[326698042,1715257871468,-20000.0,0.00063666,120]
[326698043,1715257871478,-151.0,0.00063918,120]
[326698044,1715257871488,-157.494708,0.00064329,2]
[326698045,1715257871497,-151.0,0.00064548,120]
[326698046,1715257871507,-166.394239,0.0006484,2]
[326698047,1715257871517,-10000.0,0.00064888,120]
[326698048,1715257871527,-2500.0,0.000649,30]
[326698049,1715257871538,-2998.82741362,0.00065,120]
[326698050,1715257871548,-151.0,0.00065178,120]
[326698051,1715257871558,-20000.0,0.00065666,120]
[326698052,1715257871568,-500.0,0.00065753,120]
[326698053,1715257871580,-151.0,0.00065808,120]
[326698054,1715257871590,-151.0,0.00066438,120]
[326698055,1715257871600,-2874.03465113,0.00066647,120]
[326698056,1715257871610,-390.719587,0.00066878,2]
[326698057,1715257871620,-10000.0,0.00066888,120]
[326698058,1715257871630,-151.0,0.00067068,120]
[326698059,1715257871640,-10000.0,0.00067666,120]
[326698060,1715257871649,-151.0,0.00067699,120]
[326698061,1715257871659,-151.0,0.00068329,120]
[326698062,1715257871668,-13417.22621543,0.0006839,120]
[326698063,1715257871678,-18679.94939407,0.0006839,120]
[326698064,1715257871687,-250.0,0.00068493,30]
[326698065,1715257871697,-500.0,0.00068493,31]
[326698066,1715257871706,-206.40925056,0.00068493,32]
[326698067,1715257871715,-1792.89,0.00068493,120]
[326698068,1715257871725,-250.0,0.00068493,120]
[326698069,1715257871734,-500.0,0.00068493,120]
[326698070,1715257871744,-750.0,0.00068493,120]
[326698071,1715257871754,-1000.0,0.00068493,120]
[326698072,1715257871764,-1250.0,0.00068493,120]
[326698073,1715257871773,-790.91035955,0.00068493,120]
[326698074,1715257871783,-151.0,0.00068877,120]
[326698075,1715257871792,-10000.0,0.00068888,120]
[326698076,1715257871802,-151.0,0.00068959,120]
[326698077,1715257871812,-309.46773432,0.00069,7]
[326698078,1715257871821,-3000.0,0.00069,120]
[326698079,1715257871832,-3000.0,0.0006901,120]
[326698080,1715257871841,-3000.0,0.0006902,120]
[326698081,1715257871851,-3000.0,0.0006903,120]
[326698082,1715257871860,-3964.320289,0.0006904,120]
[326698083,1715257871870,-151.0,0.00069589,120]
[326698084,1715257871880,-10000.0,0.000699,60]
[326698085,1715257871890,-150.0,0.0007,120]
[326698086,1715257871899,-1000.0,0.0007,120]
[326698087,1715257871908,-2998.82741362,0.0007,120]
[326698088,1715257871917,-633.20670469,0.0007,120]
[326698089,1715257871926,-20000.0,0.0007,60]
[326698090,1715257871936,-151.0,0.00070219,120]
[326698091,1715257871945,-151.0,0.00070849,120]
[326698092,1715257871954,-166.666666,0.00070986,120]
[326698093,1715257871965,-1792.89,0.00071232,120]
[326698094,1715257871974,-151.0,0.00071479,120]
[326698095,1715257871984,-2874.03465113,0.00071647,120]
[326698096,1715257871993,-10000.0,0.00071888,120]
[326698097,1715257872003,-151.0,0.0007211,120]
[326698098,1715257872012,-151.0,0.0007274,120]
[326698099,1715257872022,-67090.32320721,0.00072999,120]
[326698100,1715257872031,-390.719587,0.00073252,120]
[326698101,1715257872041,-151.0,0.0007337,120]
[326698102,1715257872050,-10000.0,0.00073888,120]
[326698103,1715257872060,-1792.89,0.00073972,120]
[326698104,1715257872069,-151.0,0.00074,120]
[326698105,1715257872081,-151.0,0.0007463,120]
[326698106,1715257872090,-2998.82741362,0.00075,120]
[326698107,1715257872099,-151.0,0.0007526,120]
[326698108,1715257872108,-151.0,0.0007589,120]
[326698109,1715257872118,-178.48085336,0.000765,120]
[326698110,1715257872127,-151.0,0.00076521,120]
[326698111,1715257872136,-2874.03465113,0.00076647,120]
[326698112,1715257872146,-1792.89,0.00076712,120]
[326698113,1715257872155,-151.0,0.00077151,120]
[326698114,1715257872165,-151.0,0.00077781,120]
[326698115,1715257872175,-33598.34128878,0.00078,60]
[326698116,1715257872185,-151.0,0.00078411,120]
[326698117,1715257872195,-151.0,0.00079041,120]
[326698118,1715257872205,-1792.89,0.00079452,120]
[326698119,1715257872215,-480.0,0.00079452,120]
[326698120,1715257872226,-5000.0,0.0007949,120]
[326698121,1715257872236,-390.719587,0.00079625,120]
[326698122,1715257872245,-151.0,0.00079671,120]
[326698123,1715257872255,-1045.6347658,0.000799,115]
[326698124,1715257872264,-10000.0,0.000799,120]
[326698125,1715257872278,-1000.0,0.0007997,120]
[326698126,1715257872288,-661.92031273,0.0008,50]
[326698127,1715257872298,-1000.0,0.0008,120]
[326698128,1715257872307,-2998.82741362,0.0008,120]
[326698129,1715257872318,-3982.65443895,0.0008,2]
[326698130,1715257872331,-162.88720853,0.0008,120]
[326698131,1715257872340,-59613.40739939,0.0008,10]
[326698132,1715257872352,-300.0,0.0008,105]
[326698133,1715257872361,-1773.813365,0.0008,120]
[326698134,1715257872372,-166.394239,0.00080061,2]
[326698135,1715257872381,-151.0,0.00080301,120]
[326698136,1715257872390,-151.0,0.00080932,120]
[326698137,1715257872400,-300.0,0.000815,106]
[326698138,1715257872409,-151.0,0.00081562,120]
[326698139,1715257872419,-2874.03465113,0.00081647,120]
[326698140,1715257872429,-1792.89,0.00082191,120]
[326698141,1715257872439,-153.0,0.00082192,2]
[326698142,1715257872449,-153.0,0.00082192,2]
[326698143,1715257872459,-153.0,0.00082192,2]
[326698144,1715257872468,-153.0,0.00082192,2]
[326698145,1715257872478,-153.0,0.00082192,2]
[326698146,1715257872488,-153.0,0.00082192,2]
[326698147,1715257872498,-153.0,0.00082192,2]
[326698148,1715257872508,-153.0,0.00082192,2]
[326698149,1715257872517,-153.0,0.00082192,2]
[326698150,1715257872527,-153.0,0.00082192,2]
[326698151,1715257872537,-153.0,0.00082192,2]
[326698152,1715257872546,-153.0,0.00082192,2]
[326698153,1715257872556,-153.0,0.00082192,2]
[326698154,1715257872566,-153.0,0.00082192,2]
[326698155,1715257872578,-153.0,0.00082192,2]
[326698156,1715257872587,-153.0,0.00082192,2]
[326698157,1715257872597,-153.0,0.00082192,2]
[326698158,1715257872605,-153.0,0.00082192,2]
[326698159,1715257872615,-153.0,0.00082192,2]
[326698160,1715257872624,-153.0,0.00082192,2]
[326698161,1715257872713,-153.0,0.00082192,2]
[326698162,1715257872722,-153.0,0.00082192,2]
[326698163,1715257872732,-151.0,0.00082192,120]
[326698164,1715257872741,-151.0,0.00082822,120]
[326698165,1715257872751,-300.0,0.00083,107]
[326698166,1715257872761,-151.0,0.00083452,120]
[326698167,1715257872770,-151.0,0.00084082,120]
[326698168,1715257872780,-300.0,0.000845,108]
[326698169,1715257872789,-151.0,0.00084712,120]
[326698170,1715257872798,-1792.89,0.00084931,120]
[326698171,1715257872808,-2998.82741362,0.00085,120]
[326698172,1715257872817,-151.0,0.00085342,120]
[326698173,1715257872830,-151.0,0.00085973,120]
[326698174,1715257872839,-390.719587,0.00085999,120]
[326698175,1715257872848,-300.0,0.00086,109]
[326698176,1715257872858,-151.0,0.00086603,120]
[326698177,1715257872868,-2874.03365113,0.00086647,120]
[326698178,1715257872879,-151.0,0.00087233,120]
[326698179,1715257872889,-5000.0,0.0008739,120]
[326698180,1715257872899,-500.0,0.000875,110]
[326698181,1715257872908,-1792.89,0.00087671,120]
[326698182,1715257872917,-151.0,0.00087753,120]
[326698183,1715257872927,-151.0,0.00087863,120]
[326698184,1715257872936,-5867.14857254,0.00088,120]
[326698185,1715257872945,-151.0,0.00088493,120]
[326698186,1715257872955,-157.494708,0.00088548,120]
[326698187,1715257872964,-151.0,0.00089123,120]
[326698188,1715257872973,-151.0,0.00089753,120]
[326698189,1715257872983,-10000.0,0.000899,120]
[326698190,1715257872992,-1000.0,0.0009,120]
[326698191,1715257873002,-2998.82741362,0.0009,120]
[326698192,1715257873012,-151.0,0.00090384,120]
[326698193,1715257873021,-1792.89,0.0009041,120]
[326698194,1715257873031,-334.0,0.00091014,120]
[326698195,1715257873040,-390.719587,0.00092372,120]
[326698196,1715257873051,-166.666666,0.00092986,120]
[326698197,1715257873061,-1792.89,0.0009315,120]
[326698198,1715257873070,-180415.1898,0.000944,120]
[326698199,1715257873081,-5000.0,0.0009449,120]
[326698200,1715257873090,-6050.47146006,0.0009488,60]
[326698201,1715257873099,-2998.82741362,0.00095,120]
[326698202,1715257873108,-166.394239,0.00095282,2]
[326698203,1715257873117,-1792.89,0.0009589,120]
[326698204,1715257873127,-663.54849252,0.00096,120]
[326698205,1715257873136,-162.877953,0.00096621,120]
[326698206,1715257873145,-175.305256,0.00096621,120]
[326698207,1715257873155,-6842.25880191,0.000975,30]
[326698208,1715257873165,-1792.89,0.0009863,120]
[326698209,1715257873174,-390.719587,0.00098746,120]